[Event "Titled Tuesday Blitz April 26 Late 2022"]
[White "BM223344"]
[Black "Vlassov, Nikolai"]
[BlackFideId "4103360"]
[WhiteElo "2445"]
[BlackElo "2407"]
[Result "0-1"]
[Round "06"]
[TimeControl "180+1"]
[Date "2022.04.26"]
[WhiteClock "0:01:42"]
[BlackClock "0:02:00"]

1. d4 {[%clk 0:03:00]}  Nf6 {[%clk 0:02:59]} 2. c4 {[%clk 0:02:58]}  Nc6 {[%clk 0:03:00]} 3. Nc3 {[%clk 0:02:55]}  e5 {[%clk 0:02:59]} 4. d5 {[%clk 0:02:55]}  Ne7 {[%clk 0:02:59]} 5. e4 {[%clk 0:02:55]}  Ng6 {[%clk 0:02:59]} 6. Bd3 {[%clk 0:02:54]}  Bc5 {[%clk 0:02:59]} 7. Nge2 {[%clk 0:02:54]}  Ng4 {[%clk 0:02:59]} 8. Rf1 {[%clk 0:02:34]}  Nxh2 {[%clk 0:02:58]} 9. Be3 {[%clk 0:02:19]}  Bxe3 {[%clk 0:02:57]} 10. fxe3 {[%clk 0:02:17]}  Nxf1 {[%clk 0:02:58]} 11. Kxf1 {[%clk 0:02:17]}  d6 {[%clk 0:02:56]} 12. Ng1 {[%clk 0:02:15]}  O-O {[%clk 0:02:55]} 13. Qf3 {[%clk 0:02:14]}  f5 {[%clk 0:02:53]} 14. exf5 {[%clk 0:02:12]}  Bxf5 {[%clk 0:02:51]} 15. Bxf5 {[%clk 0:02:11]}  Nh4 {[%clk 0:02:51]} 16. Qh3 {[%clk 0:02:11]}  Nxf5 {[%clk 0:02:49]} 17. Ke2 {[%clk 0:02:11]}  Qh4 {[%clk 0:02:34]} 18. Qxh4 {[%clk 0:02:04]}  Nxh4 {[%clk 0:02:34]} 19. Nf3 {[%clk 0:02:03]}  Nxf3 {[%clk 0:02:26]} 20. gxf3 {[%clk 0:02:03]}  Rf5 {[%clk 0:02:23]} 21. Rg1 {[%clk 0:02:03]}  Raf8 {[%clk 0:02:21]} 22. Rg3 {[%clk 0:02:04]}  Rh5 {[%clk 0:02:21]} 23. Kd3 {[%clk 0:02:03]}  a6 {[%clk 0:02:19]} 24. a4 {[%clk 0:02:02]}  Rh2 {[%clk 0:02:18]} 25. Ne2 {[%clk 0:01:54]}  h5 {[%clk 0:02:16]} 26. f4 {[%clk 0:01:50]}  h4 {[%clk 0:02:15]} 27. Rg6 {[%clk 0:01:49]}  e4+ {[%clk 0:02:11]} 28. Kd2 {[%clk 0:01:48]}  h3 {[%clk 0:02:10]} 29. Rg3 {[%clk 0:01:42]}  Rf6 {[%clk 0:02:04]} 30. Ke1 {[%clk 0:01:42]}  Rxe2+ {[%clk 0:02:00]} 31. Kxe2 {[%clk 0:01:42]}  h2 {[%clk 0:02:00]} 0-1


[Site "https://www.chess.com"]

[Event "Titled Tuesday Blitz April 26 Late 2022"]
[White "Bas Mas, Jose Joaquin"]
[Black "Manukyan, Artyom"]
[WhiteFideId "22219064"]
[BlackFideId "13305786"]
[WhiteElo "2212"]
[BlackElo "2034"]
[Result "1-0"]
[Round "06"]
[TimeControl "180+1"]
[Date "2022.04.26"]
[WhiteClock "0:00:38"]
[BlackClock "0:01:13"]

1. e4 {[%clk 0:03:00]}  c5 {[%clk 0:02:58]} 2. Nc3 {[%clk 0:03:01]}  Nc6 {[%clk 0:02:36]} 3. Bb5 {[%clk 0:02:59]}  Nd4 {[%clk 0:02:30]} 4. Nf3 {[%clk 0:02:58]}  a6 {[%clk 0:02:27]} 5. Bc4 {[%clk 0:02:57]}  e6 {[%clk 0:02:27]} 6. Nxd4 {[%clk 0:02:56]}  cxd4 {[%clk 0:02:28]} 7. Ne2 {[%clk 0:02:56]}  b5 {[%clk 0:02:25]} 8. Bb3 {[%clk 0:02:55]}  Qb6 {[%clk 0:02:24]} 9. d3 {[%clk 0:02:53]}  g6 {[%clk 0:02:25]} 10. O-O {[%clk 0:02:53]}  Bg7 {[%clk 0:02:24]} 11. f3 {[%clk 0:02:53]}  Ne7 {[%clk 0:02:25]} 12. Qe1 {[%clk 0:02:53]}  O-O {[%clk 0:02:25]} 13. Qh4 {[%clk 0:02:52]}  Nc6 {[%clk 0:02:24]} 14. a3 {[%clk 0:02:45]}  Qc5 {[%clk 0:02:24]} 15. Bd2 {[%clk 0:02:34]}  a5 {[%clk 0:02:22]} 16. a4 {[%clk 0:02:33]}  b4 {[%clk 0:02:16]} 17. Rae1 {[%clk 0:02:14]}  Ba6 {[%clk 0:02:13]} 18. Ng3 {[%clk 0:02:07]}  Qe7 {[%clk 0:02:05]} 19. Bg5 {[%clk 0:02:05]}  f6 {[%clk 0:02:04]} 20. Bh6 {[%clk 0:02:00]}  g5 {[%clk 0:02:03]} 21. Qh3 {[%clk 0:01:51]}  Rac8 {[%clk 0:02:00]} 22. Bxg7 {[%clk 0:01:49]}  Qxg7 {[%clk 0:02:01]} 23. Nf5 {[%clk 0:01:45]}  Qg6 {[%clk 0:01:54]} 24. Nd6 {[%clk 0:01:41]}  Rc7 {[%clk 0:01:51]} 25. f4 {[%clk 0:01:36]}  g4 {[%clk 0:01:50]} 26. Qg3 {[%clk 0:01:27]}  Qg7 {[%clk 0:01:21]} 27. f5 {[%clk 0:01:23]}  Ne5 {[%clk 0:01:21]} 28. fxe6 {[%clk 0:01:15]}  dxe6 {[%clk 0:01:22]} 29. Bxe6+ {[%clk 0:01:12]}  Kh8 {[%clk 0:01:22]} 30. Bb3 {[%clk 0:01:05]}  Qg5 {[%clk 0:01:15]} 31. Rf5 {[%clk 0:00:54]}  Qg6 {[%clk 0:01:13]} 32. Qxe5 {[%clk 0:00:38]} 1-0


[Site "https://www.chess.com"]

[Event "Titled Tuesday Blitz April 26 Late 2022"]
[White "Bluebaum, Matthias"]
[Black "Siddharth, Jagadeesh"]
[WhiteFideId "24651516"]
[BlackFideId "5818320"]
[WhiteElo "2550"]
[BlackElo "2127"]
[Result "1-0"]
[Round "06"]
[TimeControl "180+1"]
[Date "2022.04.26"]
[WhiteClock "0:01:47"]
[BlackClock "0:00:30"]

1. d4 {[%clk 0:03:00]}  d5 {[%clk 0:02:56]} 2. c4 {[%clk 0:03:01]}  e6 {[%clk 0:02:56]} 3. Nc3 {[%clk 0:03:01]}  Nf6 {[%clk 0:02:56]} 4. cxd5 {[%clk 0:03:02]}  Nxd5 {[%clk 0:02:57]} 5. e4 {[%clk 0:03:02]}  Nxc3 {[%clk 0:02:57]} 6. bxc3 {[%clk 0:03:03]}  c5 {[%clk 0:02:57]} 7. Rb1 {[%clk 0:03:04]}  Be7 {[%clk 0:02:57]} 8. Bc4 {[%clk 0:03:04]}  O-O {[%clk 0:02:55]} 9. Ne2 {[%clk 0:03:04]}  b6 {[%clk 0:02:52]} 10. O-O {[%clk 0:03:05]}  Bb7 {[%clk 0:02:50]} 11. Ng3 {[%clk 0:03:05]}  Nc6 {[%clk 0:02:50]} 12. Be3 {[%clk 0:03:05]}  cxd4 {[%clk 0:02:48]} 13. cxd4 {[%clk 0:03:06]}  Na5 {[%clk 0:02:49]} 14. Bd3 {[%clk 0:03:07]}  Rc8 {[%clk 0:02:49]} 15. d5 {[%clk 0:03:07]}  Nc4 {[%clk 0:02:26]} 16. Bd4 {[%clk 0:03:02]}  exd5 {[%clk 0:02:11]} 17. e5 {[%clk 0:02:28]}  g6 {[%clk 0:02:00]} 18. Nf5 {[%clk 0:02:25]}  gxf5 {[%clk 0:01:32]} 19. Bxf5 {[%clk 0:02:24]}  Rc6 {[%clk 0:01:32]} 20. e6 {[%clk 0:02:22]}  Bg5 {[%clk 0:01:07]} 21. Qh5 {[%clk 0:02:03]}  h6 {[%clk 0:01:02]} 22. f4 {[%clk 0:01:51]}  Bc8 {[%clk 0:00:33]} 23. fxg5 {[%clk 0:01:46]}  Qxg5 {[%clk 0:00:33]} 24. Bh7+ {[%clk 0:01:46]}  Kxh7 {[%clk 0:00:30]} 25. Rxf7+ {[%clk 0:01:47]} 1-0


[Site "https://www.chess.com"]

[Event "Titled Tuesday Blitz April 26 Late 2022"]
[White "Buchenau, Frank"]
[Black "Romero Ruscalleda, Josep"]
[WhiteFideId "4604350"]
[BlackFideId "2231859"]
[WhiteElo "2193"]
[BlackElo "2313"]
[Result "0-1"]
[Round "06"]
[TimeControl "180+1"]
[Date "2022.04.26"]
[WhiteClock "0:00:04"]
[BlackClock "0:00:05"]

1. e4 {[%clk 0:03:00]}  g6 {[%clk 0:03:00]} 2. d4 {[%clk 0:03:00]}  Bg7 {[%clk 0:03:01]} 3. Nc3 {[%clk 0:03:00]}  d6 {[%clk 0:03:01]} 4. Nf3 {[%clk 0:03:00]}  a6 {[%clk 0:03:01]} 5. Bc4 {[%clk 0:03:00]}  Nf6 {[%clk 0:02:59]} 6. e5 {[%clk 0:02:51]}  dxe5 {[%clk 0:02:58]} 7. Nxe5 {[%clk 0:02:51]}  O-O {[%clk 0:02:57]} 8. O-O {[%clk 0:02:51]}  Nbd7 {[%clk 0:02:52]} 9. Bf4 {[%clk 0:02:40]}  Nb6 {[%clk 0:02:49]} 10. Bb3 {[%clk 0:02:36]}  Nbd5 {[%clk 0:02:45]} 11. Nxd5 {[%clk 0:02:33]}  Nxd5 {[%clk 0:02:45]} 12. Bg3 {[%clk 0:02:30]}  Be6 {[%clk 0:02:41]} 13. c4 {[%clk 0:02:25]}  Nb6 {[%clk 0:02:37]} 14. d5 {[%clk 0:02:23]}  Bf5 {[%clk 0:02:30]} 15. Qe2 {[%clk 0:02:16]}  Nd7 {[%clk 0:02:26]} 16. Rfe1 {[%clk 0:02:13]}  Nc5 {[%clk 0:02:21]} 17. Bc2 {[%clk 0:02:11]}  Bxc2 {[%clk 0:02:20]} 18. Qxc2 {[%clk 0:02:11]}  a5 {[%clk 0:02:19]} 19. Rad1 {[%clk 0:02:09]}  a4 {[%clk 0:02:14]} 20. h4 {[%clk 0:02:07]}  f6 {[%clk 0:01:54]} 21. Nf3 {[%clk 0:02:06]}  f5 {[%clk 0:01:55]} 22. Be5 {[%clk 0:01:55]}  Bxe5 {[%clk 0:01:50]} 23. Rxe5 {[%clk 0:01:54]}  Ne4 {[%clk 0:01:33]} 24. Ng5 {[%clk 0:01:51]}  Nxg5 {[%clk 0:01:29]} 25. hxg5 {[%clk 0:01:52]}  Ra6 {[%clk 0:01:20]} 26. Qe2 {[%clk 0:01:50]}  Rf7 {[%clk 0:01:18]} 27. Re1 {[%clk 0:01:49]}  Kf8 {[%clk 0:01:15]} 28. c5 {[%clk 0:01:34]}  Ra5 {[%clk 0:01:06]} 29. Qc4 {[%clk 0:01:30]}  b6 {[%clk 0:00:54]} 30. c6 {[%clk 0:01:09]}  Qd6 {[%clk 0:00:51]} 31. Qd4 {[%clk 0:01:06]}  Kg8 {[%clk 0:00:46]} 32. g3 {[%clk 0:01:01]}  Rc5 {[%clk 0:00:24]} 33. R1e2 {[%clk 0:00:47]}  b5 {[%clk 0:00:22]} 34. Kh2 {[%clk 0:00:37]}  Rxc6 {[%clk 0:00:21]} 35. Re6 {[%clk 0:00:32]}  Rc4 {[%clk 0:00:18]} 36. Qa7 {[%clk 0:00:22]}  Qxd5 {[%clk 0:00:18]} 37. Qb8+ {[%clk 0:00:22]}  Rf8 {[%clk 0:00:18]} 38. Qa7 {[%clk 0:00:20]}  Rc1 {[%clk 0:00:17]} 39. f3 {[%clk 0:00:17]}  Qd1 {[%clk 0:00:16]} 40. Kh3 {[%clk 0:00:14]}  Qf1+ {[%clk 0:00:15]} 41. Rg2 {[%clk 0:00:14]}  Qxf3 {[%clk 0:00:15]} 42. Qd4 {[%clk 0:00:13]}  Rh1+ {[%clk 0:00:12]} 43. Rh2 {[%clk 0:00:12]}  Qh5+ {[%clk 0:00:11]} 44. Qh4 {[%clk 0:00:11]}  Qxh4+ {[%clk 0:00:10]} 45. gxh4 {[%clk 0:00:12]}  Rxh2+ {[%clk 0:00:11]} 46. Kxh2 {[%clk 0:00:12]}  Kf7 {[%clk 0:00:11]} 47. Rc6 {[%clk 0:00:12]}  Rc8 {[%clk 0:00:11]} 48. Kg3 {[%clk 0:00:11]}  e5 {[%clk 0:00:12]} 49. Rc5 {[%clk 0:00:10]}  Ke6 {[%clk 0:00:11]} 50. Rxb5 {[%clk 0:00:10]}  c6 {[%clk 0:00:11]} 51. Rb4 {[%clk 0:00:10]}  e4 {[%clk 0:00:09]} 52. Kf4 {[%clk 0:00:09]}  c5 {[%clk 0:00:08]} 53. Rxa4 {[%clk 0:00:10]}  Rb8 {[%clk 0:00:08]} 54. Ra6+ {[%clk 0:00:10]}  Kd5 {[%clk 0:00:08]} 55. b3 {[%clk 0:00:10]}  Rb4 {[%clk 0:00:08]} 56. Ra7 {[%clk 0:00:10]}  Rd4 {[%clk 0:00:06]} 57. Rd7+ {[%clk 0:00:09]}  Ke6 {[%clk 0:00:05]} 58. Rxh7 {[%clk 0:00:10]}  Rd3 {[%clk 0:00:05]} 59. h5 {[%clk 0:00:04]}  Rf3# {[%clk 0:00:05]} 0-1


[Site "https://www.chess.com"]

[Event "Titled Tuesday Blitz April 26 Late 2022"]
[White "Caruana, Fabiano"]
[Black "Moussard, Jules"]
[WhiteFideId "2020009"]
[BlackFideId "642908"]
[WhiteElo "2744"]
[BlackElo "2589"]
[Result "1-0"]
[Round "06"]
[TimeControl "180+1"]
[Date "2022.04.26"]
[WhiteClock "0:00:21"]
[BlackClock "0:00:09"]

1. c4 {[%clk 0:03:00]}  e6 {[%clk 0:02:57]} 2. Nc3 {[%clk 0:02:59]}  d5 {[%clk 0:02:57]} 3. d4 {[%clk 0:03:00]}  a6 {[%clk 0:02:57]} 4. cxd5 {[%clk 0:02:59]}  exd5 {[%clk 0:02:58]} 5. Nf3 {[%clk 0:03:00]}  Nf6 {[%clk 0:02:58]} 6. Bf4 {[%clk 0:02:59]}  Bd6 {[%clk 0:02:57]} 7. Bg3 {[%clk 0:03:00]}  O-O {[%clk 0:02:52]} 8. e3 {[%clk 0:02:59]}  Nc6 {[%clk 0:02:45]} 9. Bd3 {[%clk 0:02:58]}  Bxg3 {[%clk 0:02:36]} 10. hxg3 {[%clk 0:02:59]}  Re8 {[%clk 0:02:32]} 11. a3 {[%clk 0:02:53]}  h6 {[%clk 0:02:31]} 12. Qc2 {[%clk 0:02:51]}  Qd6 {[%clk 0:02:19]} 13. Ne2 {[%clk 0:02:43]}  Ne4 {[%clk 0:02:10]} 14. Nf4 {[%clk 0:02:39]}  Bg4 {[%clk 0:02:05]} 15. O-O {[%clk 0:02:28]}  Rad8 {[%clk 0:01:38]} 16. Rac1 {[%clk 0:02:24]}  Re7 {[%clk 0:01:30]} 17. Bxa6 {[%clk 0:02:10]}  Nxd4 {[%clk 0:01:15]} 18. Nxd4 {[%clk 0:02:07]}  Qxa6 {[%clk 0:01:15]} 19. f3 {[%clk 0:01:54]}  Nxg3 {[%clk 0:01:15]} 20. fxg4 {[%clk 0:01:54]}  Nxf1 {[%clk 0:01:16]} 21. Rxf1 {[%clk 0:01:54]}  Qb6 {[%clk 0:01:00]} 22. Nf5 {[%clk 0:01:48]}  Re5 {[%clk 0:00:59]} 23. Qf2 {[%clk 0:01:28]}  Rf8 {[%clk 0:00:50]} 24. Nh5 {[%clk 0:00:58]}  g6 {[%clk 0:00:44]} 25. Nxh6+ {[%clk 0:00:57]}  Kh7 {[%clk 0:00:40]} 26. Nf6+ {[%clk 0:00:57]}  Kg7 {[%clk 0:00:38]} 27. Nd7 {[%clk 0:00:56]}  Qxe3 {[%clk 0:00:35]} 28. Nxe5 {[%clk 0:00:53]}  Qxf2+ {[%clk 0:00:18]} 29. Rxf2 {[%clk 0:00:51]}  f6 {[%clk 0:00:18]} 30. g5 {[%clk 0:00:29]}  fxe5 {[%clk 0:00:18]} 31. Rxf8 {[%clk 0:00:29]}  Kxf8 {[%clk 0:00:19]} 32. Ng4 {[%clk 0:00:29]}  e4 {[%clk 0:00:20]} 33. Ne5 {[%clk 0:00:26]}  e3 {[%clk 0:00:08]} 34. Nxg6+ {[%clk 0:00:22]}  Kf7 {[%clk 0:00:08]} 35. Nf4 {[%clk 0:00:21]}  d4 {[%clk 0:00:09]} 36. Kf1 {[%clk 0:00:21]}  c5 {[%clk 0:00:09]} 37. b3 {[%clk 0:00:19]}  b5 {[%clk 0:00:08]} 38. Ke2 {[%clk 0:00:20]}  c4 {[%clk 0:00:08]} 39. bxc4 {[%clk 0:00:21]}  bxc4 {[%clk 0:00:09]} 40. a4 {[%clk 0:00:21]} 1-0


[Site "https://www.chess.com"]

[Event "Titled Tuesday Blitz April 26 Late 2022"]
[White "Czopor, Maciej"]
[Black "Richter, Nils"]
[WhiteFideId "21805431"]
[BlackFideId "12990809"]
[WhiteElo "1999"]
[BlackElo "2243"]
[Result "1-0"]
[Round "06"]
[TimeControl "180+1"]
[Date "2022.04.26"]
[WhiteClock "0:00:04"]
[BlackClock "0:00:08"]

1. d4 {[%clk 0:03:00]}  e6 {[%clk 0:02:57]} 2. c4 {[%clk 0:03:00]}  b6 {[%clk 0:02:58]} 3. Nc3 {[%clk 0:02:58]}  Bb4 {[%clk 0:02:57]} 4. Qb3 {[%clk 0:02:55]}  Bxc3+ {[%clk 0:02:56]} 5. Qxc3 {[%clk 0:02:55]}  Nf6 {[%clk 0:02:57]} 6. f3 {[%clk 0:02:53]}  d5 {[%clk 0:02:56]} 7. e3 {[%clk 0:02:50]}  O-O {[%clk 0:02:55]} 8. Nh3 {[%clk 0:02:49]}  Nbd7 {[%clk 0:02:53]} 9. Nf2 {[%clk 0:02:46]}  c5 {[%clk 0:02:51]} 10. dxc5 {[%clk 0:02:41]}  Nxc5 {[%clk 0:02:51]} 11. b4 {[%clk 0:02:39]}  Ncd7 {[%clk 0:02:48]} 12. Bb2 {[%clk 0:02:38]}  Bb7 {[%clk 0:02:47]} 13. cxd5 {[%clk 0:02:37]}  Rc8 {[%clk 0:02:45]} 14. Qd4 {[%clk 0:02:33]}  e5 {[%clk 0:02:43]} 15. Qd2 {[%clk 0:02:29]}  Nxd5 {[%clk 0:02:41]} 16. e4 {[%clk 0:02:26]}  N5f6 {[%clk 0:02:33]} 17. Rd1 {[%clk 0:02:24]}  Qe7 {[%clk 0:02:31]} 18. Bd3 {[%clk 0:02:13]}  a5 {[%clk 0:02:27]} 19. a3 {[%clk 0:02:11]}  axb4 {[%clk 0:02:26]} 20. axb4 {[%clk 0:02:10]}  Rfd8 {[%clk 0:02:24]} 21. O-O {[%clk 0:02:10]}  Nf8 {[%clk 0:02:21]} 22. Qe3 {[%clk 0:02:01]}  N6d7 {[%clk 0:02:02]} 23. b5 {[%clk 0:01:38]}  Nc5 {[%clk 0:02:00]} 24. Be2 {[%clk 0:01:37]}  Na4 {[%clk 0:01:49]} 25. Ba1 {[%clk 0:01:30]}  Ng6 {[%clk 0:01:40]} 26. g3 {[%clk 0:01:26]}  h5 {[%clk 0:01:38]} 27. h4 {[%clk 0:01:14]}  Nf8 {[%clk 0:01:22]} 28. Nd3 {[%clk 0:01:08]}  f6 {[%clk 0:01:10]} 29. Nb2 {[%clk 0:01:00]}  Nxb2 {[%clk 0:01:08]} 30. Bxb2 {[%clk 0:01:01]}  Rxd1 {[%clk 0:00:49]} 31. Rxd1 {[%clk 0:01:01]}  Qc5 {[%clk 0:00:50]} 32. Qxc5 {[%clk 0:00:57]}  Rxc5 {[%clk 0:00:51]} 33. Ba3 {[%clk 0:00:40]}  Rc2 {[%clk 0:00:38]} 34. Rd8 {[%clk 0:00:31]}  Rxe2 {[%clk 0:00:37]} 35. Rxf8+ {[%clk 0:00:31]}  Kh7 {[%clk 0:00:38]} 36. Rb8 {[%clk 0:00:30]}  Ra2 {[%clk 0:00:35]} 37. Bd6 {[%clk 0:00:22]}  Rd2 {[%clk 0:00:33]} 38. Bc7 {[%clk 0:00:20]}  Rd7 {[%clk 0:00:15]} 39. Rxb7 {[%clk 0:00:19]}  Kg6 {[%clk 0:00:15]} 40. Ra7 {[%clk 0:00:20]}  Rd1+ {[%clk 0:00:14]} 41. Kf2 {[%clk 0:00:19]}  Rb1 {[%clk 0:00:15]} 42. Bxb6 {[%clk 0:00:18]}  Rxb5 {[%clk 0:00:16]} 43. Be3 {[%clk 0:00:13]}  Rb2+ {[%clk 0:00:16]} 44. Kf1 {[%clk 0:00:13]}  Rb1+ {[%clk 0:00:16]} 45. Kg2 {[%clk 0:00:13]}  Rb2+ {[%clk 0:00:16]} 46. Bf2 {[%clk 0:00:14]}  Rc2 {[%clk 0:00:16]} 47. Rd7 {[%clk 0:00:14]}  Rb2 {[%clk 0:00:16]} 48. Kf1 {[%clk 0:00:13]}  Ra2 {[%clk 0:00:17]} 49. Ke1 {[%clk 0:00:12]}  Rb2 {[%clk 0:00:17]} 50. Rd2 {[%clk 0:00:12]}  Rb3 {[%clk 0:00:17]} 51. Ke2 {[%clk 0:00:12]}  Kf7 {[%clk 0:00:18]} 52. Be3 {[%clk 0:00:11]}  g6 {[%clk 0:00:17]} 53. Rd3 {[%clk 0:00:11]}  Rb2+ {[%clk 0:00:17]} 54. Bd2 {[%clk 0:00:12]}  f5 {[%clk 0:00:17]} 55. Rd6 {[%clk 0:00:09]}  fxe4 {[%clk 0:00:14]} 56. fxe4 {[%clk 0:00:10]}  Rb3 {[%clk 0:00:15]} 57. Be3 {[%clk 0:00:10]}  Rb2+ {[%clk 0:00:15]} 58. Kf3 {[%clk 0:00:10]}  Rb1 {[%clk 0:00:15]} 59. Bg5 {[%clk 0:00:10]}  Rf1+ {[%clk 0:00:13]} 60. Ke2 {[%clk 0:00:09]}  Ra1 {[%clk 0:00:12]} 61. Rf6+ {[%clk 0:00:08]}  Kg7 {[%clk 0:00:11]} 62. Re6 {[%clk 0:00:09]}  Ra5 {[%clk 0:00:09]} 63. Re7+ {[%clk 0:00:08]}  Kf8 {[%clk 0:00:08]} 64. Rd7 {[%clk 0:00:06]}  Ra2+ {[%clk 0:00:07]} 65. Kf3 {[%clk 0:00:05]}  Ra3+ {[%clk 0:00:08]} 66. Ke2 {[%clk 0:00:05]}  Ra2+ {[%clk 0:00:08]} 67. Kf3 {[%clk 0:00:05]}  Ra3+ {[%clk 0:00:09]} 68. Be3 {[%clk 0:00:06]}  Ke8 {[%clk 0:00:08]} 69. Rg7 {[%clk 0:00:06]}  Ra6 {[%clk 0:00:08]} 70. g4 {[%clk 0:00:03]}  Kf8 {[%clk 0:00:08]} 71. Rd7 {[%clk 0:00:03]}  hxg4+ {[%clk 0:00:08]} 72. Kxg4 {[%clk 0:00:04]}  Ra4 {[%clk 0:00:09]} 73. Kf3 {[%clk 0:00:03]}  Ke8 {[%clk 0:00:09]} 74. Rg7 {[%clk 0:00:03]}  Ra6 {[%clk 0:00:10]} 75. Kg4 {[%clk 0:00:03]}  Kf8 {[%clk 0:00:10]} 76. Rc7 {[%clk 0:00:03]}  Ra4 {[%clk 0:00:11]} 77. Kf3 {[%clk 0:00:03]}  Ra1 {[%clk 0:00:10]} 78. Rc5 {[%clk 0:00:03]}  Rh1 {[%clk 0:00:09]} 79. Bf2 {[%clk 0:00:03]}  Rh3+ {[%clk 0:00:08]} 80. Kg2 {[%clk 0:00:03]}  Ra3 {[%clk 0:00:09]} 81. Rxe5 {[%clk 0:00:03]}  Kf7 {[%clk 0:00:10]} 82. Rg5 {[%clk 0:00:03]}  Ra4 {[%clk 0:00:09]} 83. Kf3 {[%clk 0:00:03]}  Ra3+ {[%clk 0:00:10]} 84. Be3 {[%clk 0:00:04]}  Ra1 {[%clk 0:00:11]} 85. Rb5 {[%clk 0:00:03]}  Rf1+ {[%clk 0:00:11]} 86. Bf2 {[%clk 0:00:04]}  Ra1 {[%clk 0:00:11]} 87. Rb6 {[%clk 0:00:04]}  Ra3+ {[%clk 0:00:12]} 88. Be3 {[%clk 0:00:05]}  Ra1 {[%clk 0:00:12]} 89. e5 {[%clk 0:00:05]}  Ra4 {[%clk 0:00:11]} 90. Rf6+ {[%clk 0:00:04]}  Kg7 {[%clk 0:00:11]} 91. Rf4 {[%clk 0:00:04]}  Ra8 {[%clk 0:00:10]} 92. e6 {[%clk 0:00:04]}  Ra6 {[%clk 0:00:10]} 93. Bd4+ {[%clk 0:00:04]}  Kg8 {[%clk 0:00:09]} 94. e7 {[%clk 0:00:04]}  Re6 {[%clk 0:00:08]} 95. Rf8+ {[%clk 0:00:04]}  Kh7 {[%clk 0:00:08]} 96. Rh8# {[%clk 0:00:04]} 1-0


[Site "https://www.chess.com"]

[Event "Titled Tuesday Blitz April 26 Late 2022"]
[White "Demchenko, Anton"]
[Black "Donchenko, Alexander"]
[WhiteFideId "4160258"]
[BlackFideId "24603295"]
[WhiteElo "2539"]
[BlackElo "2539"]
[Result "1-0"]
[Round "06"]
[TimeControl "180+1"]
[Date "2022.04.26"]
[WhiteClock "0:00:18"]
[BlackClock "0:00:24"]

1. e4 {[%clk 0:02:57]}  c6 {[%clk 0:03:00]} 2. d4 {[%clk 0:02:57]}  d5 {[%clk 0:03:01]} 3. e5 {[%clk 0:02:58]}  Bf5 {[%clk 0:03:01]} 4. Bd3 {[%clk 0:02:58]}  Bxd3 {[%clk 0:03:01]} 5. Qxd3 {[%clk 0:02:59]}  e6 {[%clk 0:03:01]} 6. c3 {[%clk 0:03:00]}  Nd7 {[%clk 0:02:58]} 7. Ne2 {[%clk 0:03:01]}  c5 {[%clk 0:02:58]} 8. O-O {[%clk 0:03:01]}  Ne7 {[%clk 0:02:59]} 9. Nd2 {[%clk 0:03:00]}  Nc6 {[%clk 0:02:59]} 10. Nf3 {[%clk 0:03:01]}  Be7 {[%clk 0:02:58]} 11. a3 {[%clk 0:02:53]}  a5 {[%clk 0:02:51]} 12. Be3 {[%clk 0:02:45]}  a4 {[%clk 0:02:50]} 13. Ng3 {[%clk 0:02:41]}  h5 {[%clk 0:02:44]} 14. h3 {[%clk 0:02:34]}  Qb6 {[%clk 0:02:42]} 15. Rab1 {[%clk 0:02:26]}  g6 {[%clk 0:02:35]} 16. Ne2 {[%clk 0:02:20]}  Kf8 {[%clk 0:02:24]} 17. Bg5 {[%clk 0:02:11]}  Kg7 {[%clk 0:02:10]} 18. Qe3 {[%clk 0:02:03]}  Rac8 {[%clk 0:02:00]} 19. Qf4 {[%clk 0:01:59]}  cxd4 {[%clk 0:01:53]} 20. cxd4 {[%clk 0:01:57]}  Qa6 {[%clk 0:01:36]} 21. Nc3 {[%clk 0:01:44]}  b5 {[%clk 0:01:28]} 22. Rbc1 {[%clk 0:01:26]}  Bxg5 {[%clk 0:01:21]} 23. Nxg5 {[%clk 0:01:26]}  Rhf8 {[%clk 0:01:22]} 24. g4 {[%clk 0:01:17]}  hxg4 {[%clk 0:01:21]} 25. hxg4 {[%clk 0:01:18]}  b4 {[%clk 0:01:20]} 26. axb4 {[%clk 0:00:43]}  Nxb4 {[%clk 0:01:21]} 27. Ra1 {[%clk 0:00:44]}  Nd3 {[%clk 0:01:11]} 28. Qd2 {[%clk 0:00:35]}  Nb4 {[%clk 0:01:04]} 29. Rxa4 {[%clk 0:00:33]}  Qd3 {[%clk 0:01:04]} 30. Qxd3 {[%clk 0:00:30]}  Nxd3 {[%clk 0:01:05]} 31. Ra7 {[%clk 0:00:30]}  Rfd8 {[%clk 0:00:59]} 32. Nb5 {[%clk 0:00:25]}  Ra8 {[%clk 0:00:56]} 33. Rfa1 {[%clk 0:00:24]}  Rxa7 {[%clk 0:00:54]} 34. Rxa7 {[%clk 0:00:25]}  Nf4 {[%clk 0:00:41]} 35. Nd6 {[%clk 0:00:19]}  Nf8 {[%clk 0:00:24]} 36. Rxf7+ {[%clk 0:00:18]}  Kg8 {[%clk 0:00:24]} 37. Rxf4 {[%clk 0:00:18]} 1-0


[Site "https://www.chess.com"]

[Event "Titled Tuesday Blitz April 26 Late 2022"]
[White "Donatti, Alvaro"]
[Black "Melikhov, Evgeny V."]
[WhiteFideId "3000303"]
[BlackFideId "4122046"]
[WhiteElo "2138"]
[BlackElo "1931"]
[Result "0-1"]
[Round "06"]
[TimeControl "180+1"]
[Date "2022.04.26"]
[WhiteClock "0:00:01"]
[BlackClock "0:00:17"]

1. e4 {[%clk 0:03:00]}  c5 {[%clk 0:02:59]} 2. Nf3 {[%clk 0:02:59]}  d6 {[%clk 0:02:59]} 3. c3 {[%clk 0:02:58]}  Nf6 {[%clk 0:02:58]} 4. Bc4 {[%clk 0:02:57]}  e6 {[%clk 0:02:58]} 5. Qe2 {[%clk 0:02:57]}  Be7 {[%clk 0:02:55]} 6. O-O {[%clk 0:02:56]}  O-O {[%clk 0:02:55]} 7. d4 {[%clk 0:02:55]}  Qc7 {[%clk 0:02:52]} 8. Bf4 {[%clk 0:02:34]}  Nbd7 {[%clk 0:02:49]} 9. e5 {[%clk 0:02:31]}  Nd5 {[%clk 0:02:49]} 10. exd6 {[%clk 0:02:30]}  Bxd6 {[%clk 0:02:48]} 11. Bxd6 {[%clk 0:02:30]}  Qxd6 {[%clk 0:02:48]} 12. Nbd2 {[%clk 0:02:17]}  cxd4 {[%clk 0:02:46]} 13. Nxd4 {[%clk 0:02:16]}  N7f6 {[%clk 0:02:42]} 14. Ne4 {[%clk 0:02:07]}  Nxe4 {[%clk 0:02:41]} 15. Qxe4 {[%clk 0:02:07]}  Nf6 {[%clk 0:02:37]} 16. Qf3 {[%clk 0:02:05]}  a6 {[%clk 0:02:28]} 17. Rad1 {[%clk 0:02:02]}  Qc7 {[%clk 0:02:27]} 18. Bb3 {[%clk 0:01:54]}  Bd7 {[%clk 0:02:23]} 19. Rfe1 {[%clk 0:01:50]}  Bc6 {[%clk 0:02:17]} 20. Nxc6 {[%clk 0:01:49]}  bxc6 {[%clk 0:02:13]} 21. Rd4 {[%clk 0:01:38]}  Rfd8 {[%clk 0:02:09]} 22. Rc4 {[%clk 0:01:34]}  Rd6 {[%clk 0:01:57]} 23. g3 {[%clk 0:01:28]}  Rad8 {[%clk 0:01:52]} 24. Ba4 {[%clk 0:01:13]}  Nd5 {[%clk 0:01:51]} 25. Rh4 {[%clk 0:00:56]}  g6 {[%clk 0:01:43]} 26. Bb3 {[%clk 0:00:50]}  Qe7 {[%clk 0:01:29]} 27. Ra4 {[%clk 0:00:45]}  c5 {[%clk 0:01:18]} 28. Qe2 {[%clk 0:00:36]}  Qb7 {[%clk 0:01:12]} 29. Qe5 {[%clk 0:00:28]}  f6 {[%clk 0:01:08]} 30. Qe2 {[%clk 0:00:23]}  Kg7 {[%clk 0:01:08]} 31. Bc4 {[%clk 0:00:19]}  Nc7 {[%clk 0:01:00]} 32. b4 {[%clk 0:00:15]}  cxb4 {[%clk 0:00:59]} 33. Rxb4 {[%clk 0:00:12]}  Qc6 {[%clk 0:00:43]} 34. Reb1 {[%clk 0:00:11]}  R8d7 {[%clk 0:00:30]} 35. Rb7 {[%clk 0:00:10]}  Nb5 {[%clk 0:00:24]} 36. Rxd7+ {[%clk 0:00:07]}  Qxd7 {[%clk 0:00:22]} 37. Bxb5 {[%clk 0:00:07]}  axb5 {[%clk 0:00:22]} 38. Qxb5 {[%clk 0:00:05]}  Rd1+ {[%clk 0:00:22]} 39. Kg2 {[%clk 0:00:05]}  Qxb5 {[%clk 0:00:21]} 40. Rxb5 {[%clk 0:00:03]}  Rc1 {[%clk 0:00:21]} 41. Rc5 {[%clk 0:00:03]}  Rc2 {[%clk 0:00:21]} 42. a4 {[%clk 0:00:02]}  e5 {[%clk 0:00:20]} 43. a5 {[%clk 0:00:02]}  Ra2 {[%clk 0:00:19]} 44. Rb5 {[%clk 0:00:01]}  e4 {[%clk 0:00:17]} 45. c4 {[%clk 0:00:01]}  e3 {[%clk 0:00:17]} 0-1


[Site "https://www.chess.com"]